Cogmind - Beta 12 @@@ ROGUE MODE // 2023.04.01 @ 14:52:28 Player: Mark Result: Destroyed by S-10 Pest with Light Assault Rifle Performance ------------- Evolutions (0) 0 Regions Visited (1) 200 Robots Destroyed (2) 10 Value Destroyed (44) 44 Prototype IDs (0) 0 Alien Tech Used (0) 0 Bonus (0) 0 TOTAL SCORE: 254 Bonus ------- None Cogmind --------- Core Integrity 0/250 Matter 300/300 Energy 100/100 System Corruption 0% Temperature Cool (0) Movement Core (500) Ox9 Location -10/Materials Parts ------- > --- POWER (1) -------- (None) > --- PROPULSION (2) --- Flight Unit > --- UTILITY (2) ------ Medium Storage Unit Large Storage Unit > --- WEAPON (2) ------- (None) > --- INVENTORY (15) --- Aluminum Leg Aluminum Leg Medium Laser Grenade Launcher Peak State ------------ > --- POWER ------------ Light Ion Engine > --- PROPULSION ------- Aluminum Leg Flight Unit > --- UTILITY ---------- Medium Storage Unit Large Storage Unit > --- WEAPON ----------- Light Assault Rifle Datajack > --- INVENTORY -------- Aluminum Leg Aluminum Leg Medium Laser Grenade Launcher [Rating: 7] Favorites ----------- Power Light Ion Engine Engine Light Ion Engine Propulsion Aluminum Leg Leg Aluminum Leg Flight Unit Flight Unit Utility Medium Storage Unit Storage Medium Storage Unit Weapon Light Assault Rifle Energy Gun Medium Laser Ballistic Gun Light Assault Rifle Special Melee Weapon Datajack Build | -11 -10 ------- Run | Jun Mat Slots Evolved . | . . Power . | . . Propulsion . | . . Utility . | . . Weapon . | . . Parts Attached 10 | 5 5 Power 1 | 1 . Engine 1 | 1 . Core . | . . Reactor . | . . Propulsion 4 | 2 2 Treads . | . . Leg 3 | 2 1 Wheel . | . . Hover . | . . Flight 1 | . 1 Utility 2 | . 2 Device . | . . Storage 2 | . 2 Processor . | . . Hackware . | . . Protection . | . . Artifact . | . . Weapon 3 | 2 1 Energy Gun 1 | 1 . Energy Cannon . | . . Ballistic Gun 1 | 1 . Ballistic Cannon . | . . Launcher . | . . Special Weapon . | . . Impact Weapon . | . . Slashing Weapon . | . . Piercing Weapon . | . . Special Melee Weapon 1 | . 1 Unidentified Prototypes . | . . Parts Lost 4 | . 4 Power 1 | . 1 Propulsion 1 | . 1 Utility . | . . Weapon 2 | . 2 Highest Loss Streak 4 | . 4 To Critical Strikes . | . . Average Slot Usage (%) 84 | . 84 Engine 12 | . 12 Leg 8 | . 8 Flight 13 | . 13 Storage 24 | . 24 Ballistic Gun 12 | . 12 Special Melee Weapon 11 | . 11 Naked Turns . | . . Heaviest Build 35 | 6 35 Greatest Support 20 | 20 20 Greatest Overweight (x) 9 | . 9 Average Overweight (x) 1 | . 3 Largest Inventory Capacity 15 | 5 15 Average Capacity 11 | 5 13 Most Carried 5 | 2 5 Average Carried 1 | . 2 Final Capacity 15 | 5 15 Final Carried 4 | 1 4 Class Distribution -------------------- 100% | Mutant Dominant Class ---------------- Mutant | -10/Materials Resources | -11 -10 ----------- Run | Jun Mat Matter Collected 275 | 255 20 Remotely . | . . Salvage Created 70 | 50 20 Parts 4 | 2 2 Haulers Intercepted . | . . Recyclers Shooed . | . . Parts Field Recycled . | . . Retrieved Matter . | . . Parts Self-Destructed . | . . Prevented . | . . Kills | -11 -10 ------- Run | Jun Mat Combat Hostiles Destroyed 2 | 1 1 Melee 1 | . 1 Guns 1 | 1 . Classes Destroyed 2 | 1 1 Swarmer 1 | . 1 Grunt 1 | 1 . Best Kill Streak 1 | 1 1 Combat Bots Only 1 | 1 1 Max Kills in Single Turn 1 | 1 1 Gunslinging . | . . Exploded . | . . Melee 1 | . 1 Uniques/NPCs Destroyed . | . . Combat | -11 -10 -------- Run | Jun Mat Damage Taken 637 | 44 593 Core 254 | 11 243 Absorbed by Shields . | . . Core Remaining (%) 95 | 95 . Volleys Fired 11 | 5 6 Largest 2 | 2 1 Hottest 70 | 70 20 Shots Fired 16 | 10 6 Gun 16 | 10 6 Cannon . | . . Launcher . | . . Special . | . . Kinetic 11 | 5 6 Thermal 5 | 5 . Explosive . | . . Electromagnetic . | . . Robot Hit Streak 3 | 3 1 Robot Miss Streak 4 | 2 4 Penetration Max . | . . Secondary Targets . | . . Shots Hit Robots 7 | 6 1 Core Hits 7 | 2 5 Critical Kills . | . . Critical Parts Destroyed . | . . Critical Strikes . | . . Melee Attacks . | . . Impact . | . . Slashing . | . . Piercing . | . . Sneak Attacks . | . . Combat Hostiles . | . . Follow-up Attacks . | . . Damage Inflicted 128 | 84 44 Guns 114 | 84 30 Cannons . | . . Explosions . | . . Melee . | . . Ramming 14 | . 14 Kinetic 64 | 34 30 Thermal 50 | 50 . Explosive . | . . Electromagnetic . | . . Impact . | . . Slashing . | . . Piercing . | . . Highest Corruption . | . . Average Corruption . | . . Corruption Purged . | . . Corruption Blocked . | . . Overload Shots . | . . Overflow Damage . | . . Projectiles . | . . Explosions . | . . Melee . | . . Knockbacks . | . . Impact . | . . Kinetic . | . . Secondary . | . . Self-Inflicted Damage . | . . Shots . | . . Rammed 3 | . 3 Targets Rammed 7 | . 7 Kicked 4 | . 4 Crushed . | . . Highest Temperature 114 | 114 . Average Temperature 59 | 59 . Received Heat Transfer 24 | 24 . Siege Activations . | . . Robots Corrupted . | . . Combat Hostiles . | . . Parts Fried . | . . Impact Corruptions . | . . Robots Melted . | . . Combat Hostiles . | . . Parts Melted 1 | 1 . Heat Transferred 148 | 148 . Parts Sabotaged . | . . Parts Stolen . | . . Parts Stripped . | . . Power Chain Reactions . | . . Missiles Intercepted . | . . Alert | -11 -10 ------- Run | Jun Mat Peak Influence 28 | 20 28 Initial 13 | . 13 Average 11 | 2 14 Maximum Alert Level . | . . Low Security (%) 100 | 100 100 Level 1 . | . . Level 2 . | . . Level 3 . | . . Level 4 . | . . Level 5 . | . . High Security . | . . Max Security . | . . Squads Dispatched . | . . Investigation . | . . Extermination . | . . Reinforcement . | . . Assault . | . . Garrison . | . . Intercept . | . . Searches Triggered . | . . Construction Impeded . | . . Haulers Reinforced . | . . Active Scanning Responses . | . . Cargo Convoy Interrupts . | . . Stealth | -11 -10 --------- Run | Jun Mat Distress Signals 1 | . 1 Communications Jammed . | . . Distress Signals . | . . Times Spotted 6 | 1 5 Peak Tracking Total 5 | 1 5 Tactical Retreats . | . . Traps | -11 -10 ------- Run | Jun Mat Traps Triggered . | . . Indirectly . | . . Trap Hack Attempts . | . . Triggered . | . . Disarmed . | . . Reprogrammed . | . . Reused . | . . Traps Extracted . | . . Installed . | . . Triggered . | . . Machines | -11 -10 ---------- Run | Jun Mat Machines Disabled . | . . Max in Single Turn . | . . Machines Repaired . | . . Machines Sabotaged . | . . Overloaded Fab Kills . | . . Hacking | -11 -10 --------- Run | Jun Mat Machines Accessed . | . . Terminals . | . . Fabricators . | . . Repair Stations . | . . Recycling Units . | . . Scanalyzers . | . . Garrison Access . | . . Total Hacks . | . . Successful . | . . Failed . | . . Catastrophic . | . . Database Lockouts . | . . Manual . | . . Terminals . | . . Fabricators . | . . Repair Stations . | . . Recycling Units . | . . Scanalyzers . | . . Garrison Access . | . . Terminal Hacks . | . . Fabricator Hacks . | . . Repair Station Hacks . | . . Recycling Unit Hacks . | . . Scanalyzer . | . . Garrison Access Hacks . | . . Unauthorized Hacks . | . . Terminals . | . . Fabricators . | . . Repair Stations . | . . Recycling Units . | . . Scanalyzers . | . . Garrison Access . | . . Data Cores Recovered . | . . Used . | . . Hacking Detections . | . . Full Trace Events . | . . Feedback Events . | . . Feedback Blocked . | . . Robot Schematics Acquired . | . . Robots Built . | . . Authchips . | . . Time . | . . Total Robot Build Rating . | . . Part Schematics Acquired . | . . Parts Built . | . . Authchips . | . . Time . | . . Total Part Build Rating . | . . Parts Repaired . | . . Time . | . . Parts Recycled . | . . Recycled Matter . | . . Retrieved Matter . | . . Retrieved Components . | . . Parts Scanalyzed . | . . Part Schematics Acquired . | . . Parts Damaged . | . . Bothacking | -11 -10 ------------ Run | Jun Mat Used RIF Installer . | . . Robots Hacked . | . . Non-combat . | . . Combat . | . . Robot Hacks Applied . | . . Relay Couplers Released . | . . Fabnet Peak Effective % . | . . Robots Rewired . | . . Allies Hacked . | . . Hacks Repelled . | . . Allies | -11 -10 -------- Run | Jun Mat Total Allies . | . . Largest Group . | . . Highest-Rated Group . | . . Highest-Rated Ally . | . . Total Orders . | . . Ally Attacks . | . . Total Damage . | . . Kills . | . . Allies Corrupted . | . . Allies Melted . | . . Intel | -11 -10 ------- Run | Jun Mat Robot Analysis Total . | . . Derelict Logs Recovered . | . . Drone Launches . | . . Drone Recoveries . | . . Exploration | -11 -10 ------------- Run | Jun Mat Turns Passed 515 | 131 384 Spaces Moved 201 | 102 99 Core 34 | 32 2 Treads . | . . Legs 133 | 70 63 Wheels . | . . Hover . | . . Flight 34 | . 34 Fastest Speed 50 | 50 120 Average Speed 213 | 98 332 Slowest Speed 680 | 120 680 Overloaded Moves . | . . Propulsion Burnouts . | . . Robots Hopped . | . . Cave-ins Triggered . | . . Exploration Rate (%) 12 | 6 19 Regions Visited 1 Branch Regions . Pre-discovered Areas . | . . Known Exits Taken . | . . Unknown Exits Taken 1 | 1 . Scrap Searched . | . . Spaces Dug . | . . Terrain Destroyed . | . . Melee . | . . Projectile . | . . AOE . | . . Terrain Rammed . | . . Walls Destroyed . | . . Machines Disabled . | . . Actions | -11 -10 --------- Run | Jun Mat Total 257 | 124 133 Wait 7 | 7 . Move 200 | 101 99 Hop . | . . Pick Up 15 | 6 9 Fast Attach . | . . Attach 10 | 5 5 Detach 3 | . 3 Swap . | . . Drop 4 | . 4 Fire 11 | 5 6 Melee . | . . Ram 3 | . 3 Kick 4 | . 4 Crush . | . . Escape Stasis . | . . Rewire . | . . Trap . | . . Miscellaneous . | . . Route ------- -11/Junkyard -10/Materials History --------- Turn | Location | Event 2 | -11/Junkyard | Met Revision 17 98 | -11/Junkyard | Discovered new exit (range 8) 132 | -11/Junkyard | Entered Materials 333 | -10/Materials | Build established: Mutant 484 | -10/Materials | Core integrity fell below 50% 502 | -10/Materials | Core integrity fell below 20% 516 | -10/Materials | Destroyed by S-10 Pest with Light Assault Rifle Last Messages --------------- Acquired Aluminum Leg. K-01 Serf collects debris. W-16 Scout sends out distress signal. Datajack destroyed. Lgt. Ion Engine destroyed. Kicked S-10 Pest. Lgt. Assault Rifle destroyed. Kicked S-10 Pest. S-10 Pest destroyed. Acquired 20 matter. R-06 Scavenger collects Flight Unit. Aluminum Leg destroyed. R-06 Scavenger collects Lgt. Ion Engine. Slammed into S-10 Pest. K-01 Serf collects debris. Slammed into S-10 Pest. K-01 Serf collects debris. Slammed into S-10 Pest. K-01 Serf collects debris. [Achievement: First Step to Greatness] Map ----- +----------------------------------------------------+ | ?????????????????????????????????????????????????? | | ?????????????????????????????????????????????????? | | ?????????????????????????????????????????????????? | | ?????????????????????????????????????????????????? | | ?????????????????????????????????????????????????? | | ?????????????????????????????????????????????????? | | ?????????????????????????????????????????????????? | | ?????????????????????????????????????????????????? | | ?????????????????????????????????????????????????? | | ??????????????????????????? ???????????????????? | | ??????????????????????????# #??????????????????? | | ??????????????????????????# #??????????????????? | | ??????????????????????????# #??????????????????? | | ??????????????????????????#w #??????????????????? | | ???????????? ???????????# #??????????????????? | | ??????????# ???????????# #??????????????????? | | ??????????# ??????????# #??????????????????? | | ??????????# ###########u #?###??????????????? | | ??????????? ^ k# ??????????????? | | ??????????# u # ???????????????? | | ??????????# T r + ?????????????????? | | ??????????# ^ """" #??????????????????? | | ??????????# ^ ^ """" ##?????????????????? | | ???????#+## """" ##############????? | | ?????? !!! k s #????? | | ?????? !!! s @ #????? | | ?????? !! % #????? | | ???????# ###+###### r #????? | | ???????????#?????????????## ############ #????? | | ??????????????????????????# #??????????# #????? | | ??????????????????????????# #??????????# #????? | | ??????????????????????????# #??????????# #????? | | ??????????????????????????# #??????????# #????? | | ??????????????????????????# #??????????# #????? | | ??????????????????????????# #??????????# #????? | | ??????????????????????????# #??????????# #????? | | ??????????????????????????# ??????????# ####?? | | ??????????????????????????# ??????????# !##? | | ??????????????????????????### #####+##### !#? | | ????????????????????????????# #? | | ????????????????????????????# !#? | | ????????????????????????????# #? | | ????????????????????????????# #### ##+### !##? | | ???????????????????????????????????# # #####?? | | ???????????????????????????????????##### #?????? | | ???????????????????????????????????????# #?????? | | ???????????????????????????????????????# #?????? | | ???????????????????????????????????????# #?????? | | ???????????????????????????????????????# #?????? | | ???????????????????????????????????????# #?????? | +----------------------------------------------------+ Best States ------------- Heat Dissipation 25 Energy Generation 10 Energy Capacity 125 Matter Stores 300 Matter Capacity 300 Sight Range 16 Terrain Scan Density 10 Evasion (%) 55 Item Schematics ----------------- None Robot Schematics ------------------ None Fabricated ------------ Nothing Alien Tech Used ----------------- None Achievements -------------- First Step to Greatness Challenges ------------ None Game ------ Seed AlphaSpreadPit Manual? 0 Play Time 00:22:53 Cumulative 0.6 hours Start 2023.04.01 @ 14:31:39 End 2023.04.01 @ 14:52:28 Sessions 1 Manual Loads 0 Difficulty Rogue Special Mode None Game No. 5 Rogue 5 Adventurer 0 Explorer 0 Win Type - Total 0 Types 0/0/0/0/0/0/0/0/0 Lore% 0 Gallery% 3 Achievement% 3 Wizard Run 0 Options --------- ASCII 1 Keyboard 1 Movement Numpad Keybinds 0 Fullscreen 1 Font 18/SmallcapsGlow Map View 76x50 Tactical HUD 0 Map Filters NONE Filters NONE Steam 1 RUN: 98c63048-fb17-4d53-9628-9c18286f8c3e